Cogmind - Beta 10.1 @@@ ROGUE MODE // 2020.09.25 @ 14:21:56 Player: Cassie Rose Result: Self-destructed Performance ------------- Evolutions (1) 500 Regions Visited (2) 400 Robots Destroyed (23) 115 Value Destroyed (503) 503 Prototype IDs (0) 0 Alien Tech Used (0) 0 Bonus (0) 0 TOTAL SCORE: 1518 Bonus ------- None Cogmind --------- Core Integrity 320/400 Matter 74/300 Energy 125/125 System Corruption 0% Temperature Cool (30) Movement Flying (117) Ox1 Location -9/Materials Parts ------- > --- POWER (1) -------- Light Ion Engine > --- PROPULSION (3) --- VTOL Module VTOL Module > --- UTILITY (3) ------ Medium Storage Unit Signal Interpreter Transport Network Coupler > --- WEAPON (2) ------- Light Cannon Improved Light Cannon > --- INVENTORY (8) ---- Signal Interpreter ECM Suite Light Armor Plating Light Cannon Grenade Launcher Grenade Launcher Grenade Launcher Peak State ------------ > --- POWER ------------ Light Ion Engine > --- PROPULSION ------- Hover Unit VTOL Module VTOL Module > --- UTILITY ---------- Medium Storage Unit Signal Interpreter Transport Network Coupler > --- WEAPON ----------- Assault Rifle Light Cannon > --- INVENTORY -------- Signal Interpreter ECM Suite Light Armor Plating Light Cannon Grenade Launcher Grenade Launcher Grenade Launcher [Rating: 11] Favorites ----------- Power Light Ion Engine Engine Light Ion Engine Propulsion Wheel Wheel Wheel Hover Unit Hover Unit Flight Unit VTOL Module Utility Signal Interpreter Storage Medium Storage Unit Processor Signal Interpreter Weapon Assault Rifle Energy Gun Small Laser Ballistic Gun Assault Rifle Ballistic Cannon Light Cannon Launcher Grenade Launcher Build | -11 -10 -9 ------- Run | Scr Mat Mat Slots Evolved 2 | . . 2 Power . | . . . Propulsion 1 | . . 1 Utility 1 | . . 1 Weapon . | . . . Parts Attached 27 | 6 12 9 Power 3 | 1 1 1 Engine 3 | 1 1 1 Core . | . . . Reactor . | . . . Propulsion 6 | 2 1 3 Treads . | . . . Leg . | . . . Wheel 3 | 2 1 . Hover 1 | . . 1 Flight 2 | . . 2 Utility 4 | 1 2 1 Device . | . . . Storage 2 | 1 1 . Processor 2 | . 1 1 Hackware . | . . . Protection . | . . . Artifact . | . . . Weapon 14 | 2 8 4 Energy Gun 2 | 1 1 . Energy Cannon . | . . . Ballistic Gun 3 | 1 1 1 Ballistic Cannon 4 | . 1 3 Launcher 5 | . 5 . Special Weapon . | . . . Impact Weapon . | . . . Slashing Weapon . | . . . Piercing Weapon . | . . . Special Melee Weapon . | . . . Unidentified Prototypes . | . . . Parts Lost 4 | . 1 3 Power 1 | . . 1 Propulsion 1 | . . 1 Utility . | . . . Weapon 2 | . 1 1 Highest Loss Streak 1 | . 1 1 Average Slot Usage (%) 93 | . 95 82 Engine 12 | . 14 8 Wheel 23 | . 28 3 Flight 3 | . . 17 Storage 13 | . 14 11 Processor 12 | . 10 19 Energy Gun 4 | . 5 . Ballistic Gun 11 | . 11 8 Ballistic Cannon 6 | . 5 10 Launcher 4 | . 4 2 Naked Turns . | . . . Heaviest Build 17 | 10 17 17 Greatest Support 20 | 20 20 20 Greatest Overweight (x) 5 | . . 5 Average Overweight (x) . | . . 1 Largest Inventory Capacity 8 | 6 8 8 Average Capacity 7 | 5 7 8 Most Carried 8 | 2 8 8 Average Carried 5 | . 5 7 Final Capacity 8 | 6 8 8 Final Carried 8 | . 8 7 Class Distribution -------------------- 100% | Mutant Dominant Class ---------------- Mutant | -10/Materials Mutant | -9/Materials Resources | -11 -10 -9 ----------- Run | Scr Mat Mat Matter Collected 571 | 231 300 40 Remotely . | . . . Salvage Created 638 | . 457 181 Parts 52 | . 38 14 Haulers Intercepted 4 | . 2 2 Recyclers Shooed 1 | . . 1 Parts Field Recycled . | . . . Retrieved Matter . | . . . Parts Self-Destructed . | . . . Prevented . | . . . Kills | -11 -10 -9 ------- Run | Scr Mat Mat Combat Hostiles Destroyed 13 | . 12 1 Guns 4 | . 3 1 Cannons 2 | . 2 . AOE 7 | . 7 . Classes Destroyed 7 | . 5 2 Tunneler 2 | . 2 . Hauler 4 | . 2 2 Recycler 1 | . . 1 Watcher 3 | . 3 . Swarmer 3 | . 3 . Grunt 9 | . 9 . Sentry 1 | . . 1 Best Kill Streak 5 | . 5 2 Combat Bots Only 3 | . 3 1 Max Kills in Single Turn 3 | . 3 2 Gunslinging . | . . . Exploded 3 | . 3 . Melee . | . . . Uniques/NPCs Destroyed . | . . . Combat | -11 -10 -9 -------- Run | Scr Mat Mat Damage Taken 807 | . 417 390 Core 226 | . 146 80 Absorbed by Shields . | . . . Core Remaining (%) 70 | 100 41 . Volleys Fired 49 | . 32 17 Largest 2 | . 2 2 Hottest 74 | . 60 74 Shots Fired 95 | . 61 34 Gun 57 | . 42 15 Cannon 26 | . 7 19 Launcher 12 | . 12 . Special . | . . . Kinetic 67 | . 33 34 Thermal 16 | . 16 . Explosive 12 | . 12 . Electromagnetic . | . . . Robot Hit Streak 11 | . 11 8 Robot Miss Streak 3 | . 3 2 Penetration Max . | . . . Secondary Targets . | . . . Shots Hit Robots 64 | . 42 22 Core Hits 39 | . 34 5 Critical Hits 1 | . 1 . Critical Kills . | . . . Critical Parts Destroyed 1 | . 1 . Melee Attacks . | . . . Impact . | . . . Slashing . | . . . Piercing . | . . . Sneak Attacks . | . . . Combat Hostiles . | . . . Follow-up Attacks . | . . . Damage Inflicted 1418 | . 1020 398 Guns 477 | . 361 116 Cannons 350 | . 68 282 Explosions 591 | . 591 . Melee . | . . . Ramming . | . . . Kinetic 673 | . 275 398 Thermal 154 | . 154 . Explosive 591 | . 591 . Electromagnetic . | . . . Impact . | . . . Slashing . | . . . Piercing . | . . . Highest Corruption . | . . . Average Corruption . | . . . Corruption Purged . | . . . Overload Shots . | . . . Overflow Damage . | . . . Projectiles . | . . . Explosions . | . . . Melee . | . . . Knockbacks 1 | . 1 . Impact . | . . . Kinetic 1 | . 1 . Secondary . | . . . Self-Inflicted Damage . | . . . Shots . | . . . Rammed . | . . . Targets Rammed . | . . . Kicked . | . . . Crushed . | . . . Highest Temperature 63 | . 63 30 Average Temperature 18 | . 22 8 Received Heat Transfer 294 | . 198 96 Siege Activations . | . . . Robots Corrupted . | . . . Combat Hostiles . | . . . Parts Fried . | . . . Impact Corruptions . | . . . Robots Melted . | . . . Combat Hostiles . | . . . Parts Melted 1 | . 1 . Heat Transferred 350 | . 350 . Parts Sabotaged . | . . . Parts Stolen . | . . . Parts Stripped . | . . . Power Chain Reactions . | . . . Missiles Intercepted . | . . . Alert | -11 -10 -9 ------- Run | Scr Mat Mat Peak Influence 278 | . 278 138 Initial 94 | . . 94 Average 125 | . 134 122 Maximum Alert Level 1 | . 1 . Low Security (%) 90 | 100 88 100 Level 1 9 | . 11 . Level 2 . | . . . Level 3 . | . . . Level 4 . | . . . Level 5 . | . . . High Security . | . . . Max Security . | . . . Squads Dispatched 1 | . 1 . Investigation 1 | . 1 . Extermination . | . . . Reinforcement . | . . . Assault . | . . . Garrison . | . . . Intercept . | . . . Construction Impeded . | . . . Haulers Reinforced . | . . . Stealth | -11 -10 -9 --------- Run | Scr Mat Mat Distress Signals 2 | . 2 . Communications Jammed . | . . . Distress Signals . | . . . Times Spotted 24 | . 16 8 Peak Tracking Total 5 | . 4 5 Tactical Retreats 1 | . . 1 Traps | -11 -10 -9 ------- Run | Scr Mat Mat Traps Triggered 3 | . 3 . Indirectly . | . . . Trap Hack Attempts . | . . . Triggered . | . . . Disarmed . | . . . Reprogrammed . | . . . Reused . | . . . Traps Extracted . | . . . Installed . | . . . Triggered . | . . . Machines | -11 -10 -9 ---------- Run | Scr Mat Mat Machines Disabled 2 | . 2 . Max in Single Turn 1 | . 1 . Machines Sabotaged . | . . . Garrisons Compromised . | . . . Overloaded Fab Kills . | . . . Fab Network Shutdowns . | . . . Hacking | -11 -10 -9 --------- Run | Scr Mat Mat Machines Accessed 6 | . 6 . Terminals 6 | . 6 . Fabricators . | . . . Repair Stations . | . . . Recycling Units . | . . . Scanalyzers . | . . . Garrison Access . | . . . Total Hacks 18 | . 18 . Successful 9 | . 9 . Failed 9 | . 9 . Catastrophic 3 | . 3 . Database Lockouts . | . . . Manual 18 | . 18 . Terminals 18 | . 18 . Fabricators . | . . . Repair Stations . | . . . Recycling Units . | . . . Scanalyzers . | . . . Garrison Access . | . . . Terminal Hacks 4 | . 4 . Recall Investigation 1 | . 1 . Hauler Manifests 1 | . 1 . Registered Components 1 | . 1 . Zone Layout 1 | . 1 . Fabricator Hacks . | . . . Repair Station Hacks . | . . . Recycling Unit Hacks . | . . . Scanalyzer . | . . . Garrison Access Hacks . | . . . Unauthorized Hacks 5 | . 5 . Terminals 5 | . 5 . Botnet 4 | . 4 . Operators 1 | . 1 . Fabricators . | . . . Repair Stations . | . . . Recycling Units . | . . . Scanalyzers . | . . . Garrison Access . | . . . Data Cores Recovered . | . . . Used . | . . . Hacking Detections 5 | . 5 . Full Trace Events 1 | . 1 . Feedback Events . | . . . Feedback Blocked . | . . . Robot Schematics Acquired . | . . . Robots Built . | . . . Matter . | . . . Time . | . . . Total Robot Build Rating . | . . . Part Schematics Acquired . | . . . Parts Built . | . . . Matter . | . . . Time . | . . . Total Part Build Rating . | . . . Parts Repaired . | . . . Time . | . . . Parts Recycled . | . . . Recycled Matter . | . . . Retrieved Matter . | . . . Retrieved Components . | . . . Parts Scanalyzed . | . . . Part Schematics Acquired . | . . . Parts Damaged . | . . . Bothacking | -11 -10 -9 ------------ Run | Scr Mat Mat Used RIF Installer . | . . . Robots Hacked . | . . . Non-combat . | . . . Combat . | . . . Robot Hacks Applied . | . . . Relay Couplers Released . | . . . Robots Rewired . | . . . Allies Hacked . | . . . Hacks Repelled . | . . . Allies | -11 -10 -9 -------- Run | Scr Mat Mat Total Allies . | . . . Largest Group . | . . . Highest-Rated Group . | . . . Highest-Rated Ally . | . . . Total Orders . | . . . Ally Attacks . | . . . Total Damage . | . . . Kills . | . . . Allies Corrupted . | . . . Allies Melted . | . . . Intel | -11 -10 -9 ------- Run | Scr Mat Mat Robot Analysis Total . | . . . Derelict Logs Recovered . | . . . Drone Launches . | . . . Drone Recoveries . | . . . Exploration | -11 -10 -9 ------------- Run | Scr Mat Mat Turns Passed 935 | 44 727 164 Spaces Moved 772 | 33 669 70 Core 20 | 3 . 17 Treads . | . . . Legs . | . . . Wheels 726 | 30 669 27 Hover . | . . . Flight 26 | . . 26 Fastest Speed 50 | 50 80 80 Average Speed 85 | 77 80 139 Slowest Speed 300 | 80 80 300 Overloaded Moves . | . . . Propulsion Burnouts . | . . . Robots Hopped . | . . . Cave-ins Triggered . | . . . Exploration Rate (%) 36 | 4 97 9 Regions Visited 2 Branch Regions . Pre-discovered Areas . | . . . Known Exits Taken 1 | . 1 . Unknown Exits Taken 1 | 1 . . Scrap Searched . | . . . Spaces Dug . | . . . Terrain Destroyed 57 | . 57 . Melee . | . . . Projectile . | . . . AOE 57 | . 57 . Terrain Rammed . | . . . Walls Destroyed . | . . . Machines Disabled . | . . . Actions | -11 -10 -9 --------- Run | Scr Mat Mat Total 947 | 51 796 100 Wait 74 | 7 67 . Move 770 | 32 668 70 Hop . | . . . Pick Up 22 | 6 14 2 Fast Attach 4 | . 1 3 Attach 12 | 6 3 3 Detach . | . . . Swap 11 | . 8 3 Drop 5 | . 3 2 Fire 49 | . 32 17 Melee . | . . . Ram . | . . . Kick . | . . . Crush . | . . . Escape Stasis . | . . . Rewire . | . . . Trap . | . . . Miscellaneous . | . . . Route ------- -11/Scrapyard -10/Materials (discovered 4 exits: *Mat x3 / [*Min]) -9/Materials History --------- Turn | Location | Event 13 | -11/Scrapyard | Discovered new exit (range 16) 45 | -11/Scrapyard | Entered Materials 251 | -10/Materials | Discovered new exit (range 13) 273 | -10/Materials | Identified exit to Materials 309 | -10/Materials | Build established: Mutant 370 | -10/Materials | Discovered exit to Materials (range 14) 612 | -10/Materials | Discovered exit to Materials (range 16) 697 | -10/Materials | Discovered new exit (range 16) 748 | -10/Materials | Core integrity fell below 50% 772 | -10/Materials | Entered another Materials area 772 | -9/Materials | Evolved 2 slots: Propulsion x1, Utility x1 936 | -9/Materials | Self-destructed Last Messages --------------- 00824_ K-01 Serf collects debris. 00825_ Acquired Hover Unit. 00827_ Dropped Hover Unit. 00828_ K-01 Serf collects debris. 00830_ Acquired Imp. Light Cannon. 00833_ U-05 Engineer lays Concrete. 00834_ K-01 Serf collects debris. 00840_ Lgt. Ion Engine destroyed. 00845_ Y-45 Defender destroyed. 00845_ R-06 Scavenger destroyed. 00860_ K-01 Serf collects debris. 00873_ Acquired 40 matter. 00874_ K-01 Serf collects debris. 00883_ Acquired Lgt. Ion Engine. 00887_ K-01 Serf collects debris. 00915_ C-30 ARC bursts open, deploying its payload. 00915_ S-10 Pest unfolds itself. 00921_ K-01 Serf collects debris. 00927_ Assault Rifle destroyed. 00927_ Knocked back. Map ----- +----------------------------------------------------+ | ?????????????????????????????????????????????????? | | ?????????????????????????????????????????????????? | | ?????????????????????????????????????????????????? | | ?????????????????????????????????????????????????? | | ?????????????????????????????????????????????????? | | ?????????????????????????????????????????????????? | | ?????????????????????????????????????????????????? | | ??????????????????????????a???????????????????? | | ??????????????????????????? ??????????????????? | | ??????????????????????????? ?????????????????? | | ??????????????????????????# ??????????????????# | | ??????????????????????????# #########?????????# | | ??????????????????????????# ## #?????????# | | ??????????????????????????#u## """ #?????????# | | ??????????????????????????# ## """ #?????????# | | ??????????????????????????#%## """ #?????????# | | ??????????????????????????#r## #?????????# | | ???????????????????????####s## #?????????# | | ???????????????????????# ###+#######??????# | | ???????????????????????# #??????# | | ???????????????????????# s #??????# | | ???????????????????????# s ######## | | ???????????????????????# ####### %=[!!%=* | | ???????????????????????## ##?????# !! ! != = | | ????????????????????????# #??????# [!! ! | | ????????????????????????#@u #??????# ########### | | ????????????????????????#b #??????# # #??? | | ????????????????????????# #??????# # #??? | | ????????????????????????# #??????# # """ #??? | | ????????????????????????# #??????# + """ #??? | | ????????????????????????# #??????# # """ #??? | | ????????????????????????# #??????# # #??? | | ????????????????????????# g #??????# ########??? | | ????????????????????????# ######## #?????????? | | ????????????????????????# # # #?????????? | | ????????????????????????+ # # #?????????? | | ????????????????????????# # """ + #?????????? | | ????????????????????????# # """ # #?????????? | | ????????????????????????# # """ # #?????????? | | ????????????????????????# # # #?????????? | | ????????????????????????? ############?????????? | | ????????????????????????? ????????????????????? | | ????????????????????????? ?????????????????????? | | ?????????????????????????????????????????????????? | | ?????????????????????????????????????????????????? | | ?????????????????????????????????????????????????? | | ?????????????????????????????????????????????????? | | ?????????????????????????????????????????????????? | | ?????????????????????????????????????????????????? | | ?????????????????????????????????????????????????? | +----------------------------------------------------+ Best States ------------- Heat Dissipation 28 Energy Generation 10 Energy Capacity 125 Matter Stores 300 Matter Capacity 300 Sight Range 16 Terrain Scan Density 10 Evasion (%) 44 Item Schematics ----------------- None Robot Schematics ------------------ None Fabricated ------------ Nothing Alien Tech Used ----------------- None Achievements -------------- None Challenges ------------ None Game ------ Seed RagnarokSupersonicSuite Manual? 0 Play Time 00:17:58 Cumulative 89.2 hours Start 2020.09.25 @ 14:05:06 End 2020.09.25 @ 14:21:56 Sessions 1 Manual Loads 0 Difficulty Rogue Special Mode None Game No. 149 Rogue 149 Adventurer 0 Explorer 0 Win Type - Total 0 Types 0/0/0/0/0/0/0/0/0 Lore% 21 Gallery% 28 Achievement% 28 Wizard Run 0 Options --------- ASCII 0 Keyboard 0 Movement Mouse Keybinds 0 Fullscreen 2 Font 18/CogNarrow Map View 76x50 Tactical HUD 1 Map Filters NONE Filters LOW_CONTRAST(13,24,33)|BRIGHTNESS(120)|SATURATION(80) Steam 1 RUN: 9ed73f78-3749-4eba-98e9-f65896cad319